bitfinex-derivatives/quotes_ETHF0:USTF0_20240830
["timestamp","ask_amount","ask_price","bid_price","bid_amount"]
[1725025382183,0.39604,2524.6,2524.5,0.39605]
[1725025382375,11.3452297,2524.6,2523.8,3.2078]
[1725025382574,0.39614,2524.0,2523.8,3.2078]
[1725025382776,3.42,2524.1,2523.8,3.2078]
[1725025382982,0.99029,2524.2,2523.5,0.3887]
[1725025382983,0.39619,2523.7,2523.5,0.3887]
[1725025383583,0.39617,2523.8,2523.5,0.3887]
[1725025383892,4.91267383,2523.8,2523.5,0.78491]
[1725025384084,4.51650383,2523.8,2523.5,0.78491]
[1725025384283,4.51650383,2523.8,2523.7,0.39618]
[1725025384490,0.39613,2524.1,2523.7,0.39618]
[1725025384682,3.2078,2524.3,2523.6,3.2078]
[1725025384889,3.6039,2524.3,2523.9,0.39614]
[1725025385091,4.74774827,2524.2,2523.9,0.39614]
[1725025385283,3.2078,2524.3,2524.2,0.3961]
[1725025385489,3.2078,2524.3,2524.1,0.39611]
[1725025385788,3.2078,2524.3,2523.9,0.39613]
[1725025385997,3.60389,2524.3,2523.9,0.39614]
[1725025386880,3.2078,2524.3,2523.8,0.39615]
[1725025387089,0.3961,2524.2,2523.8,0.39615]
[1725025387390,3.2078,2524.3,2523.9,0.39615]
[1725025387391,0.39609,2524.3,2523.9,0.39615]
[1725025387591,0.00593437,2524.5,2523.7,0.7379]
[1725025387782,4.87074591,2524.1,2523.7,0.7379]
[1725025388092,0.39612,2524.1,2523.8,0.39616]
[1725025388995,0.39612,2524.1,2523.8,0.39615]
[1725025389295,0.39611,2524.2,2523.9,0.39614]
[1725025389477,0.39612,2524.1,2523.8,0.39615]
[1725025390086,4.56406395,2524.2,2523.9,0.39614]
[1725025390382,0.39612,2524.1,2523.9,0.39614]
[1725025390695,0.39612,2524.1,2523.9,0.39615]
[1725025391083,0.39613,2524.0,2523.8,0.39615]
[1725025391388,0.39613,2524.1,2523.9,0.39615]
[1725025391982,3.9616,2524.1,2523.6,7.3148]
[1725025392186,0.39617,2523.8,2523.6,7.71098]
[1725025392378,0.39617,2523.8,2523.6,7.3148]
[1725025392577,0.39617,2523.8,2523.6,7.71098]
[1725025392784,0.99027,2524.2,2523.6,7.71098]
[1725025392986,0.39618,2523.7,2523.6,3.2078]
[1725025394692,0.39613,2524.0,2523.9,0.39614]
[1725025394888,0.39613,2524.1,2523.9,0.39614]
[1725025395085,0.39614,2524.0,2523.6,4.3093]
[1725025395383,0.39614,2524.0,2523.8,0.39615]
[1725025395583,0.39614,2524.0,2523.6,3.60399]
[1725025395584,0.39618,2523.8,2523.6,3.60399]
[1725025395996,0.39618,2523.7,2523.6,3.2078]
[1725025396899,0.39618,2523.7,2523.6,3.60399]
[1725025397295,0.39618,2523.7,2523.6,3.2078]
[1725025397598,0.39623,2523.4,2523.3,0.39624]
[1725025397797,0.39622,2523.5,2523.4,0.39622]
[1725025398000,0.39622,2523.5,2523.2,3.40560881]
[1725025398292,1.36817,2523.7,2523.2,3.40560881]
[1725025398293,0.39623,2523.4,2523.3,0.39624]
[1725025398485,0.39622,2523.5,2523.4,0.39622]
[1725025398683,0.39623,2523.4,2523.3,0.39623]
[1725025399500,0.39624,2523.3,2523.2,3.60405]
[1725025399689,0.39623,2523.4,2523.3,0.39624]
[1725025401097,4.68518186,2523.6,2523.5,0.39621]
[1725025401305,1.37164,2523.8,2523.6,0.39619]
[1725025401306,0.39619,2523.7,2523.6,0.39619]
[1725025402296,0.3912,2524.1,2523.9,0.39614]
[1725025402297,0.39614,2524.0,2523.9,0.39614]
[1725025403304,0.3912,2524.1,2523.9,0.39614]
[1725025403600,0.39616,2523.9,2523.7,0.39617]
[1725025404005,0.39614,2524.0,2523.8,0.39616]
[1725025404199,0.39614,2524.0,2523.7,3.2078]
[1725025404405,0.39614,2524.0,2523.8,0.39615]
[1725025404603,0.39615,2523.9,2523.8,0.39615]
[1725025404906,0.39618,2523.8,2523.6,0.39619]
[1725025405102,0.39618,2523.7,2523.6,0.39619]
[1725025405309,4.44499688,2523.7,2523.6,0.39619]
[1725025405503,0.39618,2523.7,2523.6,0.39619]
[1725025405900,0.39619,2523.6,2523.5,0.3962]
[1725025406101,0.39624,2523.3,2523.1,3.60406]
[1725025406409,0.39624,2523.3,2523.1,3.2078]
[1725025406410,0.39626,2523.2,2523.1,3.2078]
[1725025406903,0.99065,2523.2,2522.8,0.59320609]
[1725025407111,0.3963,2522.9,2522.8,0.59320609]
[1725025407307,0.3963,2523.0,2522.8,0.59320609]
[1725025407509,4.41665437,2523.1,2522.5,3.2078]
[1725025407811,0.39632,2522.8,2522.7,0.39633]
[1725025408503,0.39631,2522.9,2522.7,0.39633]
[1725025408705,0.3963,2523.0,2522.8,0.39631]
[1725025408905,4.79836209,2523.0,2522.8,0.39631]
[1725025409101,4.79836209,2523.0,2522.9,0.3963]
[1725025409302,4.79836209,2523.0,2522.5,3.2078]
[1725025409508,0.39631,2522.9,2522.8,0.39632]
[1725025410305,4.40206209,2523.0,2522.9,0.3963]
[1725025410901,0.00593437,2523.1,2523.0,0.39629]
[1725025412213,0.00593437,2523.1,2523.0,0.77399]
[1725025412913,0.00593437,2523.1,2523.0,5.72792]
[1725025413210,0.00593437,2523.1,2523.0,6.11612]
[1725025415113,0.00593437,2523.1,2523.0,7.10685]
[1725025415308,3.2078,2523.5,2523.4,0.39623]
[1725025415511,3.5887,2524.1,2524.0,0.39613]
[1725025415705,3.2078,2524.1,2523.9,0.39614]
[1725025415903,3.60392,2524.1,2523.9,0.39614]
[1725025416101,3.60392,2524.1,2523.6,0.3897]
[1725025416102,3.2078,2524.1,2524.0,0.39613]
[1725025417208,3.2078,2524.1,2523.8,0.40208437]
[1725025417416,0.39614,2524.0,2523.8,0.40208437]
[1725025417619,0.39614,2524.0,2523.8,0.40209437]
[1725025417913,0.39614,2524.0,2523.8,0.00593437]
[1725025418104,0.39613,2524.0,2523.8,0.00593437]
[1725025418304,0.39614,2524.0,2523.8,0.00593437]
[1725025418505,0.39615,2523.9,2523.8,0.00593437]
[1725025418706,4.71066884,2523.9,2523.8,0.00593437]
[1725025419009,0.39615,2523.9,2523.8,0.00593437]
[1725025420010,0.3869,2524.0,2523.8,0.00593437]
[1725025420011,0.78304,2524.0,2523.8,0.00593437]
[1725025420211,0.3869,2524.0,2523.8,0.40208437]
[1725025420520,4.39418801,2523.9,2523.8,0.00593437]
[1725025420908,4.79033801,2523.9,2523.8,0.00593437]
[1725025421514,4.79033801,2523.9,2523.8,0.40209437]
[1725025421515,4.39418801,2523.9,2523.8,0.40209437]
[1725025421714,4.39418801,2523.9,2523.8,0.00593437]
[1725025422018,4.39418801,2523.9,2523.8,0.40209437]
[1725025422316,0.39612,2524.1,2523.9,0.39614]
[1725025422716,4.49867335,2524.1,2523.9,0.39614]
[1725025423014,0.40202437,2524.3,2524.1,0.3961]
[1725025423218,0.39611,2524.2,2524.0,0.39612]
[1725025423415,4.33042145,2524.2,2523.8,0.00593437]
[1725025423618,0.39615,2523.9,2523.8,0.00593437]
[1725025423815,0.39614,2524.0,2523.8,0.40209437]
[1725025424010,4.33042145,2524.2,2523.8,0.00593437]
[1725025424321,0.00593437,2524.3,2524.2,0.3961]
[1725025424907,0.00593437,2524.3,2524.2,4.3577]
[1725025425110,0.00593437,2524.3,2524.2,4.95644916]
[1725025425315,0.00593437,2524.3,2524.2,5.34814916]
[1725025426411,0.00593437,2524.3,2524.2,0.3961]
[1725025426814,0.00593437,2524.3,2524.2,0.99508664]
[1725025427215,0.40202437,2524.3,2524.2,0.59898664]
[1725025427420,0.40202437,2524.3,2524.1,0.39611]
[1725025428218,0.00593437,2524.3,2524.2,0.3961]
[1725025428521,0.00593437,2524.3,2524.2,4.20293582]
[1725025428822,0.00593437,2524.3,2524.2,9.15479582]
[1725025429017,0.00593437,2524.3,2524.2,8.16453582]
[1725025429526,0.40202437,2524.3,2523.9,0.3777]
[1725025429827,0.40203437,2524.3,2524.1,0.39611]
[1725025430015,0.40202437,2524.3,2524.2,0.59900674]
[1725025430217,0.00593437,2524.3,2524.2,4.20292866]
[1725025430422,0.3961,2524.2,2523.9,3.5855]
[1725025430616,0.3961,2524.2,2524.0,0.99515813]
[1725025430818,0.3961,2524.2,2524.1,0.59903813]
[1725025431621,0.00593437,2524.3,2524.1,0.59903813]
[1725025431825,0.40202437,2524.3,2524.1,0.39612]
[1725025432617,0.00593437,2524.3,2524.2,0.3961]
[1725025432932,0.00593437,2524.3,2524.2,0.99509745]
[1725025433228,0.00593437,2524.3,2524.2,9.15475745]
[1725025433922,0.00593437,2524.3,2524.2,16.14501745]
[1725025434124,4.3291,2524.8,2524.3,0.9902]
[1725025434323,4.3291,2524.8,2524.4,0.97039745]
[1725025434619,0.39605,2524.5,2524.4,0.39606]
[1725025435013,0.39605,2524.6,2524.5,0.39605]
[1725025435622,0.39605,2524.5,2524.4,0.39606]
[1725025435827,0.39605,2524.5,2524.3,0.39607]
[1725025436124,0.39607,2524.4,2524.3,0.39607]
[1725025436328,0.39606,2524.5,2524.3,0.39607]
[1725025436520,0.39607,2524.4,2524.3,0.39607]
[1725025437031,8.86267614,2524.7,2524.2,3.2078]
[1725025437032,0.39609,2524.3,2524.2,3.60389]
[1725025437220,0.39609,2524.3,2524.2,0.39609]
[1725025437819,0.39608,2524.4,2524.3,0.39608]
[1725025438122,0.3813,2524.5,2524.2,0.3961]
[1725025438123,0.3961,2524.3,2524.2,0.3961]
[1725025438325,0.39607,2524.4,2524.3,0.39607]
[1725025439623,0.39611,2524.2,2524.1,0.39611]
[1725025439825,0.39609,2524.3,2524.2,0.39609]
[1725025440020,4.5928082,2524.4,2524.3,0.39609]
[1725025440326,0.39606,2524.5,2524.4,0.39606]
[1725025440522,0.39606,2524.5,2524.4,0.37586]
[1725025440923,0.00593437,2524.7,2524.4,3.9616]
[1725025441124,0.39605,2524.6,2524.5,0.39605]
[1725025441826,0.39606,2524.5,2524.4,0.39606]
[1725025442429,0.39607,2524.4,2524.3,0.39608]
[1725025442628,0.39606,2524.5,2524.4,0.39607]
[1725025442929,0.39606,2524.5,2524.4,0.35567]
[1725025443122,3.9616,2524.5,2524.0,3.5792]
[1725025443424,0.3961,2524.2,2524.1,0.39611]
[1725025443630,0.3961,2524.2,2524.0,3.2078]
[1725025443828,0.39615,2523.9,2523.8,0.00593437]
[1725025444234,0.39614,2524.0,2523.8,0.40209437]
[1725025444732,0.7438,2524.1,2523.8,0.00593437]
[1725025444733,0.39615,2523.9,2523.8,0.00593437]
[1725025445026,0.7438,2524.1,2523.8,0.00593437]
[1725025445027,0.39614,2524.0,2523.8,0.00593437]
[1725025445224,1.13993,2524.1,2523.9,0.39615]
[1725025445733,0.39613,2524.0,2523.8,0.40209437]
[1725025445930,1.13993,2524.1,2523.8,0.40209437]
[1725025446131,0.39613,2524.0,2523.8,0.40209437]
[1725025448832,0.39613,2524.0,2523.8,0.00593437]
[1725025449131,0.39615,2523.9,2523.8,0.00593437]
[1725025450230,0.39614,2524.0,2523.8,0.40209437]
[1725025450426,6.6278,2524.4,2524.0,0.39612]
[1725025450734,0.39611,2524.2,2524.1,0.39612]
[1725025451037,0.39612,2524.1,2524.0,0.39613]
[1725025451231,0.39614,2524.0,2523.9,0.39614]
[1725025451435,0.39613,2524.0,2523.9,0.39614]
[1725025451732,0.39613,2524.0,2523.8,0.00593437]
[1725025451733,0.39615,2523.9,2523.8,0.00593437]
[1725025452134,0.39615,2523.9,2523.8,0.40209437]
[1725025452332,0.39614,2524.0,2523.9,0.39615]
[1725025452739,4.65002289,2524.0,2523.9,0.39615]
[1725025452933,0.39615,2523.9,2523.8,0.40208437]
[1725025453432,0.39614,2524.0,2523.9,0.39615]
[1725025455034,0.99027,2524.2,2523.8,0.40208437]
[1725025455035,0.39615,2523.9,2523.8,0.40208437]
[1725025455539,0.39615,2523.9,2523.8,1.00170238]
[1725025456036,0.39614,2524.0,2523.9,0.39614]
[1725025456337,0.39614,2524.0,2523.9,0.39615]
[1725025456545,0.39614,2524.0,2523.9,0.59950053]
[1725025456933,0.39614,2524.0,2523.9,0.99565053]
[1725025457539,0.39614,2524.0,2523.9,0.59950053]
[1725025457738,0.39614,2524.0,2523.9,0.99565053]
[1725025458156,4.82422233,2524.1,2524.0,0.39613]
[1725025458447,0.39611,2524.2,2524.1,0.39612]
[1725025458758,0.39608,2524.4,2524.3,0.39608]
[1725025459049,0.39608,2524.4,2524.3,0.99559053]
[1725025459542,0.39608,2524.4,2524.3,0.59950053]
[1725025460948,5.70676,2524.4,2524.3,0.59950053]
[1725025461150,9.89093112,2524.4,2524.3,0.59950053]
[1725025461351,14.30111112,2524.4,2524.3,0.59950053]
[1725025462153,10.33951112,2524.4,2524.3,0.59950053]
[1725025462955,14.30111112,2524.4,2524.3,0.59950053]
[1725025463154,23.50891112,2524.4,2524.3,0.59950053]
[1725025463356,23.50891112,2524.4,2523.9,7.71094]
[1725025463357,0.39613,2524.0,2523.9,7.71094]
[1725025463551,0.39613,2524.0,2523.9,8.31054921]
[1725025464858,0.39613,2524.0,2523.9,8.69004921]
[1725025465065,0.39608,2524.4,2524.3,0.39609]
[1725025465251,0.39608,2524.4,2524.3,0.59960921]
[1725025465560,1.38626,2524.4,2524.3,0.59960921]
[1725025465957,8.76786,2524.4,2524.3,0.59960921]
[1725025466153,13.34524731,2524.4,2524.3,0.59960921]
[1725025466357,14.70242731,2524.4,2524.3,0.59960921]
[1725025469369,14.70242731,2524.4,2523.9,8.09044]
[1725025469370,0.39613,2524.0,2523.9,8.09044]
[1725025469756,0.39613,2524.0,2523.9,8.68980452]
[1725025469953,0.39613,2524.0,2523.9,8.29366452]
[1725025471163,0.39613,2524.0,2523.9,8.68981452]
[1725025471956,0.39613,2524.0,2523.9,4.58281452]
[1725025472557,0.39613,2524.0,2523.9,3.98345]
[1725025472963,0.39613,2524.0,2523.9,4.58282789]
[1725025473266,0.3826,2524.3,2523.9,4.18667789]
[1725025473563,0.39611,2524.2,2524.0,0.59937789]
[1725025473765,0.39609,2524.3,2524.2,0.39609]
[1725025473957,4.76962,2524.6,2524.3,0.39609]
[1725025474158,0.39605,2524.5,2524.4,0.59937789]
[1725025474361,4.67312791,2524.5,2524.4,0.99544789]
[1725025475162,4.67312791,2524.5,2524.4,4.95704789]
[1725025475472,0.39605,2524.5,2524.4,4.95703789]
[1725025475863,0.39605,2524.5,2524.4,5.33913789]
[1725025476063,0.39604,2524.6,2524.5,0.39605]
[1725025476469,0.39604,2524.6,2524.5,0.59917997]
[1725025476669,0.39604,2524.6,2524.5,0.99522997]
[1725025476865,0.39604,2524.6,2524.5,0.59917997]
[1725025477764,0.39605,2524.5,2524.4,0.77817]
[1725025478066,0.39605,2524.5,2524.4,0.59914218]
[1725025478268,1.38619,2524.5,2524.4,0.59914218]
[1725025478575,1.38619,2524.5,2524.0,4.50313]
[1725025478576,0.9902,2524.4,2524.0,4.50313]
[1725025478871,0.39612,2524.1,2524.0,4.107]
[1725025479071,0.39612,2524.1,2524.0,4.70633808]
[1725025479275,0.39612,2524.1,2524.0,5.10246808]
[1725025479468,0.75051,2524.2,2524.1,0.39612]
[1725025479671,0.75051,2524.2,2524.1,0.59933808]
[1725025481467,0.75051,2524.2,2524.1,0.99545808]
[1725025481666,0.75051,2524.2,2524.1,0.59933808]
[1725025482178,0.3867,2524.5,2524.1,0.59933808]
[1725025482474,0.3703,2524.6,2524.2,0.59933808]
[1725025482676,8.29073437,2524.7,2524.3,0.59933808]
[1725025482867,8.29073437,2524.7,2524.6,0.39604]
[1725025483068,8.68675437,2524.7,2524.6,0.59933808]
[1725025483268,8.68675437,2524.7,2524.6,0.99537808]
[1725025483574,8.29073437,2524.7,2524.6,0.99537808]
[1725025483771,8.68675437,2524.7,2524.6,0.99537808]
[1725025484175,8.29073437,2524.7,2524.6,0.99537808]
[1725025484972,0.00593437,2524.7,2524.6,0.99537808]
[1725025485579,0.40195437,2524.7,2524.6,0.59933808]
[1725025486674,0.40195437,2524.7,2524.6,0.99537808]
[1725025486980,0.00593437,2524.7,2524.6,0.59933808]
[1725025487277,4.36275437,2524.7,2524.6,0.59933808]
[1725025487481,8.49962839,2524.7,2524.6,0.59933808]
[1725025488769,0.40195437,2524.7,2524.6,0.99537808]
[1725025489175,0.00593437,2524.7,2524.6,0.99537808]
[1725025491580,0.00593437,2524.7,2524.6,0.59933808]
[1725025491581,0.40195437,2524.7,2524.6,0.59933808]
[1725025491784,11.98061437,2524.7,2524.6,0.59933808]
[1725025491974,0.39607,2524.4,2524.3,3.60389]
[1725025492177,0.39607,2524.4,2524.3,4.20404684]
[1725025492574,0.39607,2524.4,2524.3,3.80795684]
[1725025492768,0.77997,2524.4,2524.3,0.99624684]
[1725025493074,0.77997,2524.4,2524.3,0.39609]
[1725025493274,0.39609,2524.3,2524.2,1.11379]
[1725025493670,0.39609,2524.3,2524.2,1.71394595]
[1725025493871,0.39609,2524.3,2524.2,1.31785595]
[1725025494367,0.77998,2524.4,2524.3,0.39609]
[1725025494573,0.77998,2524.4,2524.3,0.99624595]
[1725025495069,0.76715,2524.6,2524.5,0.39605]
[1725025495274,1.3612,2524.6,2524.5,0.60015595]
[1725025495472,5.95475277,2524.6,2524.5,0.60015595]
[1725025495780,0.40196437,2524.7,2524.6,0.39604]
[1725025495981,0.40196437,2524.7,2524.6,0.99619595]
[1725025496679,0.40196437,2524.7,2524.6,0.39604]
[1725025496875,0.00593437,2524.7,2524.1,2.74528584]
[1725025497081,0.39604,2524.6,2524.2,1.59035702]
[1725025497382,0.39604,2524.6,2524.5,0.39604]
[1725025497682,0.39604,2524.6,2524.5,0.99615702]
[1725025498279,0.39604,2524.6,2524.5,0.99616702]
[1725025498474,0.39604,2524.6,2524.5,0.99618245]
[1725025498881,0.40195437,2524.7,2524.6,0.39604]
[1725025499081,0.40195437,2524.7,2524.6,0.99617245]
[1725025499391,4.81025323,2524.7,2524.6,0.99617245]
[1725025499878,4.41423323,2524.7,2524.6,0.99617245]
[1725025500388,3.60374,2525.3,2524.7,0.99006]
[1725025500582,4.11612268,2525.4,2525.3,0.39593]
[1725025500784,4.11612268,2525.4,2525.3,4.20386245]
[1725025500989,4.11612268,2525.4,2525.3,18.57369245]
[1725025501182,0.91470414,2525.4,2525.3,19.56352245]
[1725025501484,9.81480166,2525.6,2525.5,0.3959]
[1725025501685,9.81480166,2525.6,2525.5,0.99603245]
[1725025501983,9.81480166,2525.6,2525.5,4.95523245]
[1725025502584,9.81480166,2525.6,2525.5,11.94498245]
[1725025502886,6.76480774,2525.6,2525.5,16.35473245]
[1725025503078,2.06637931,2525.6,2525.5,16.35473245]
[1725025503291,5.7108073,2526.4,2526.3,0.39577]
[1725025503989,5.7108073,2526.4,2526.2,0.39578]
[1725025504698,0.39578,2526.3,2525.7,3.42]
[1725025504883,0.39582,2526.1,2525.8,0.59887325]
[1725025505090,0.75772,2526.0,2525.7,0.39586]
[1725025505292,0.7245,2526.0,2525.6,3.2078]
[1725025505598,0.7245,2526.0,2525.9,3.60363]
[1725025505599,0.3619,2526.0,2525.9,3.60363]
[1725025505784,6.4691773,2526.4,2526.1,0.3958]
[1725025506095,6.0734073,2526.4,2526.2,0.39578]
[1725025506384,6.0734073,2526.4,2525.9,6.6278]
[1725025506586,6.0734073,2526.4,2525.9,3.42]
[1725025506778,6.4691773,2526.4,2526.1,0.39579]
[1725025507283,0.39582,2526.1,2525.8,0.39584]
[1725025507581,0.98948,2526.2,2525.7,0.39586]
[1725025507892,0.39585,2525.9,2525.6,3.60367]
[1725025508080,0.39585,2525.9,2525.7,0.39586]
[1725025508281,0.39585,2525.9,2525.6,3.60367]
[1725025508486,0.39585,2525.8,2525.6,3.60368]
[1725025508683,0.7348,2525.7,2525.6,3.60368]
[1725025509294,2.12034,2525.7,2525.6,3.2078]
[1725025509692,0.39593,2525.3,2525.2,4.107]
[1725025510094,0.39594,2525.2,2525.1,3.21373437]
[1725025510395,4.22382463,2525.4,2525.2,0.39594]
[1725025510586,4.22382463,2525.4,2525.1,3.41493942]
[1725025510789,0.7348,2525.7,2525.5,0.39589]
[1725025510988,0.7348,2525.7,2525.6,0.39588]
[1725025511492,0.368,2526.0,2525.4,3.2078]
[1725025511683,0.39594,2525.2,2525.1,3.21373437]
[1725025512193,0.39594,2525.2,2525.1,0.00593437]
[1725025512194,5.34581,2525.2,2525.1,0.00593437]
[1725025512387,9.61916503,2525.2,2525.1,0.00593437]
[1725025513191,8.62929503,2525.2,2525.1,0.00593437]
[1725025513587,9.61916503,2525.2,2525.1,0.00593437]
[1725025513983,8.62929503,2525.2,2525.1,0.00593437]
[1725025514395,4.66929503,2525.2,2525.1,0.00593437]
[1725025518093,0.39594,2525.2,2525.1,0.00593437]
[1725025519391,1.35575,2525.3,2525.2,0.39594]
[1725025519392,0.76184,2525.3,2525.2,0.39594]
[1725025519596,0.76351,2525.4,2525.3,0.39593]
[1725025519791,0.3676,2525.4,2525.3,4.35593]
[1725025520099,0.78759,2525.6,2525.4,0.3959]
[1725025520295,0.3959,2525.5,2525.4,0.3959]
[1725025520603,5.20450453,2525.5,2525.1,0.5987028]
[1725025520797,0.39594,2525.2,2525.1,0.00593437]
[1725025521099,1.38581,2525.2,2525.1,0.00593437]
[1725025521589,5.34581,2525.2,2525.1,0.00593437]
[1725025521789,9.93112143,2525.2,2525.1,0.00593437]
[1725025522199,4.98125143,2525.2,2525.1,0.00593437]
[1725025522499,1.38581,2525.2,2525.1,0.00593437]
[1725025522705,0.39602,2524.7,2524.6,3.2078]
[1725025522994,0.39602,2524.7,2524.3,0.39609]
[1725025522995,0.39605,2524.5,2524.3,0.39609]
[1725025523203,0.75575,2524.6,2524.2,10.7348]
[1725025523395,0.99002,2524.9,2524.5,0.39605]
[1725025523396,0.39603,2524.7,2524.5,0.39605]
[1725025523605,0.39604,2524.6,2524.5,0.39605]
[1725025523795,0.3783,2524.8,2524.7,0.39602]
[1725025523999,0.00593437,2524.9,2524.8,0.39601]
[1725025524198,0.00593437,2524.9,2524.8,7.56461]
[1725025524703,0.00593437,2524.9,2524.8,13.56461]
[1725025525000,0.00593437,2524.9,2524.8,15.55025]
[1725025525204,0.00593437,2524.9,2524.8,16.15007115]
[1725025525392,0.00232093,2524.9,2524.8,16.15007115]
[1725025525793,9.3e-07,2524.9,2524.8,16.15007115]
[1725025526300,9.3e-07,2524.9,2524.8,15.55025]
[1725025526506,0.3783,2525.6,2524.8,15.55025]
[1725025526507,0.3783,2525.6,2525.5,0.3959]
[1725025526798,1.15366,2525.8,2525.3,6.82844942]
[1725025526998,1.15366,2525.8,2525.5,0.39589]
[1725025527196,1.15366,2525.8,2525.3,6.82844942]
[1725025527393,0.7578,2525.8,2525.3,6.82844942]
[1725025527597,1.15959437,2525.8,2525.6,0.39587]
[1725025527798,0.39587,2525.7,2525.5,0.39589]
[1725025528193,3.9592,2525.7,2525.3,3.2078]
[1725025528394,4.28030427,2525.6,2525.3,3.2078]
[1725025528597,0.39591,2525.4,2525.3,3.2078]
[1725025529204,0.78491,2525.5,2525.3,3.60373]
[1725025529391,0.389,2525.5,2525.4,0.39591]
[1725025529704,0.39593,2525.4,2525.2,0.19924365]
[1725025529901,5.90605131,2525.5,2525.1,4.107]
[1725025530107,4.91629131,2525.5,2525.1,4.107]
[1725025530295,0.7849,2525.5,2525.2,0.19922385]
[1725025530600,0.7849,2525.5,2525.3,0.39592]
[1725025530804,0.389,2525.5,2525.4,0.39591]
[1725025531003,0.7849,2525.5,2525.3,0.39592]
[1725025531210,0.39591,2525.4,2525.2,0.39593]
[1725025532306,0.78491,2525.5,2525.3,0.39593]
[1725025532604,0.78491,2525.5,2525.1,3.61875992]
[1725025532605,0.39588,2525.7,2525.1,10.78655992]
[1725025532801,0.39588,2525.7,2525.5,0.39589]
[1725025532992,1.13143437,2525.8,2525.7,0.39587]
[1725025532993,0.00593437,2525.8,2525.7,0.39587]
[1725025533198,0.00593437,2525.8,2525.7,2.37521]
[1725025533405,0.00593437,2525.8,2525.7,12.53805521]
[1725025533595,0.00593437,2525.8,2525.7,13.13688977]
[1725025533998,4.37e-06,2525.8,2525.7,13.13688977]
[1725025536299,4.37e-06,2525.8,2525.7,12.78747918]
[1725025536606,4.37e-06,2525.8,2525.7,13.38591757]
[1725025536801,1.52101,2526.7,2526.3,0.39577]
[1725025537007,1.52101,2526.7,2526.3,7.02357]
[1725025537305,1.1253,2526.7,2526.3,10.98197]
[1725025537504,0.7495,2526.7,2526.3,10.98197]
[1725025537706,0.00593437,2526.6,2526.3,10.98197]
[1725025537899,1e-08,2526.4,2526.3,18.56966128]
[1725025538205,0.00593437,2526.6,2526.5,0.39574]
[1725025538403,0.00593437,2526.6,2526.5,7.77334]
[1725025538606,0.00593437,2526.6,2526.5,13.77334]
[1725025539708,0.00593437,2526.6,2526.5,7.77334]
[1725025539912,0.00593437,2526.6,2526.5,3.81574]
[1725025540116,0.00593437,2526.6,2526.3,6.6278]
[1725025540401,0.00593437,2526.6,2526.5,0.39574]
[1725025540608,0.39576,2526.4,2526.3,3.2078]
[1725025541315,0.00593437,2526.6,2526.3,3.2078]
[1725025541316,0.39575,2526.5,2526.3,6.6278]
[1725025541505,0.3636,2526.4,2526.3,6.6278]
[1725025541705,0.3636,2526.4,2526.3,7.02357]
[1725025542211,0.00593437,2526.6,2526.5,0.39574]
[1725025542503,0.00593437,2526.6,2526.5,3.81574]
[1725025542710,0.00593437,2526.6,2526.5,7.77334]
[1725025544399,0.00593437,2526.6,2526.3,6.6278]
[1725025544602,0.00593437,2526.6,2526.5,3.81574]
[1725025545001,0.00593437,2526.6,2526.5,13.77334]
[1725025545207,0.00593437,2526.6,2526.5,7.77334]
[1725025546105,0.00593437,2526.6,2526.5,0.39574]
[1725025546408,0.00593437,2526.6,2526.3,6.6278]
[1725025546909,0.00593437,2526.6,2526.5,0.39574]
[1725025547105,0.00593437,2526.6,2526.3,6.6278]
[1725025547106,0.39574,2526.5,2526.3,7.02356]
[1725025547500,0.3735,2526.4,2526.3,3.2078]
[1725025547708,0.3735,2526.4,2526.3,3.60357]
[1725025547709,0.7307,2526.4,2526.3,3.60357]
[1725025548613,0.7307,2526.4,2526.3,7.02357]
[1725025549628,0.39579,2526.2,2526.1,0.00593437]
[1725025550112,0.98951,2526.1,2525.6,3.61392209]
[1725025550313,0.39589,2525.6,2525.3,7.92292]
[1725025550510,0.98963,2525.8,2525.3,4.107]
[1725025550702,0.39586,2525.8,2525.3,7.527]
[1725025550907,3.2078,2525.9,2525.4,3.2078]
[1725025550908,3.60364,2525.9,2525.4,3.2078]
[1725025551102,3.2078,2525.9,2525.7,0.39586]
[1725025551307,3.60364,2525.9,2525.6,0.39588]
[1725025551710,3.2078,2525.9,2525.7,0.39586]
[1725025551924,3.42,2526.5,2525.5,3.42]
[1725025551925,0.98942,2526.4,2525.5,3.42]
[1725025552105,0.39579,2526.2,2525.9,0.39583]
[1725025552307,0.3958,2526.1,2525.8,0.39584]
[1725025552508,5.32207204,2526.4,2525.5,3.42]
[1725025552707,0.3958,2526.2,2525.9,0.39583]
[1725025553218,0.39579,2526.2,2526.0,0.39582]
[1725025553412,0.3862,2526.2,2526.0,0.39582]
[1725025554109,0.3862,2526.2,2526.1,0.3958]
[1725025554911,0.00593437,2526.6,2526.1,9.9584]
[1725025555119,0.00593437,2526.6,2526.5,7.61716]
[1725025555316,4.37e-06,2526.6,2526.5,18.95986]
[1725025555618,3.2078,2528.1,2526.6,0.3961]
[1725025555917,3.2078,2528.1,2527.9,3.81552]
[1725025556126,3.2078,2528.1,2527.9,3.42]
[1725025556304,3.2078,2528.1,2527.5,3.2078]
[1725025556305,4.3452,2528.0,2527.5,6.6278]
[1725025556505,1.55734437,2528.0,2527.5,3.42593437]
[1725025556709,1.16183437,2528.0,2527.5,0.00593437]
[1725025557012,3.2078,2527.8,2527.5,0.00593437]
[1725025557208,0.39554,2527.8,2527.5,0.00593437]
[1725025557412,4.14034589,2527.7,2527.5,0.00593437]
[1725025557615,0.39557,2527.6,2527.5,0.00593437]
[1725025557816,4.14034589,2527.7,2527.5,0.00593437]
[1725025558122,4.53590589,2527.7,2527.5,0.00593437]
[1725025558309,4.35157,2527.6,2527.5,0.00593437]
[1725025558513,0.39557,2527.6,2527.5,0.00593437]
[1725025558716,8.72647947,2527.6,2527.5,0.00593437]
[1725025558916,4.35237,2527.6,2527.5,0.00593437]
[1725025559515,7.1646,2527.6,2526.9,3.81567]
[1725025559720,0.39558,2527.5,2527.1,3.42]
[1725025559920,0.7639,2527.4,2527.3,3.42]